[Event "*** Titled Tuesday Blitz"]
[Site "Chess.com"]
[Date "2020.04.28"]
[Round "3"]
[White "2nd_life"]
[Black "MiroVlasenko"]
[Result "1/2-1/2"]
[WhiteElo "2405"]
[BlackElo "2592"]
[TimeControl "180+1"]
[EndTime "10:30:33 PDT"]
[Termination "Game drawn by repetition"]

1. e4 {[%clk 0:03:00.9]} 1... Nc6 {[%clk 0:02:58.7]} 2. Nf3 {[%clk 0:02:51.5]}
2... d6 {[%clk 0:02:58.7]} 3. d4 {[%clk 0:02:48.8]} 3... Nf6 {[%clk 0:02:59.2]}
4. Bd3 {[%clk 0:02:40.6]} 4... Bg4 {[%clk 0:02:58]} 5. c3 {[%clk 0:02:39]} 5...
e6 {[%clk 0:02:56.2]} 6. Nbd2 {[%clk 0:02:35.4]} 6... d5 {[%clk 0:02:56.1]} 7.
e5 {[%clk 0:02:33.3]} 7... Nd7 {[%clk 0:02:55.9]} 8. Nf1 {[%clk 0:02:28.8]} 8...
f6 {[%clk 0:02:47.4]} 9. h3 {[%clk 0:02:17.1]} 9... Bh5 {[%clk 0:02:30.1]} 10.
Ng3 {[%clk 0:02:00.6]} 10... Bg6 {[%clk 0:02:20.2]} 11. Bxg6+ {[%clk 0:01:51.6]}
11... hxg6 {[%clk 0:02:21.1]} 12. Qe2 {[%clk 0:01:48.4]} 12... Kf7 {[%clk
0:02:20.1]} 13. h4 {[%clk 0:01:43]} 13... Be7 {[%clk 0:02:15.6]} 14. Bf4 {[%clk
0:01:35.9]} 14... f5 {[%clk 0:02:03]} 15. Ng5+ {[%clk 0:01:27.3]} 15... Bxg5
{[%clk 0:01:59.7]} 16. Bxg5 {[%clk 0:01:28.2]} 16... Qe8 {[%clk 0:01:58.6]} 17.
O-O-O {[%clk 0:01:26.5]} 17... Na5 {[%clk 0:01:48.9]} 18. h5 {[%clk 0:01:20.2]}
18... Nf8 {[%clk 0:01:48.4]} 19. hxg6+ {[%clk 0:01:10.7]} 19... Nxg6 {[%clk
0:01:49.3]} 20. Rxh8 {[%clk 0:01:10.6]} 20... Qxh8 {[%clk 0:01:34.6]} 21. Nxf5
{[%clk 0:00:39.2]} 21... exf5 {[%clk 0:01:18.2]} 22. e6+ {[%clk 0:00:38.2]}
22... Ke8 {[%clk 0:01:18.2]} 23. Qb5+ {[%clk 0:00:33.9]} 23... c6 {[%clk
0:01:15.1]} 24. Qxa5 {[%clk 0:00:29.5]} 24... Qh5 {[%clk 0:01:15]} 25. f4 {[%clk
0:00:25.2]} 25... Qe2 {[%clk 0:01:06.3]} 26. Qc7 {[%clk 0:00:22.5]} 26... Qxe6
{[%clk 0:01:05.4]} 27. Qxb7 {[%clk 0:00:21.8]} 27... Rc8 {[%clk 0:01:03.2]} 28.
Rh1 {[%clk 0:00:21.6]} 28... Kf8 {[%clk 0:00:56.1]} 29. Rh7 {[%clk 0:00:16.9]}
29... Qe1+ {[%clk 0:00:36.9]} 30. Kc2 {[%clk 0:00:16.8]} 30... Qe2+ {[%clk
0:00:37.2]} 31. Kb3 {[%clk 0:00:17.1]} 31... Qb5+ {[%clk 0:00:35.6]} 32. Qxb5
{[%clk 0:00:17.3]} 32... cxb5 {[%clk 0:00:35.8]} 33. Rh1 {[%clk 0:00:17.2]}
33... Re8 {[%clk 0:00:34.2]} 34. g4 {[%clk 0:00:14.6]} 34... fxg4 {[%clk
0:00:32.2]} 35. f5 {[%clk 0:00:14.7]} 35... Ne7 {[%clk 0:00:29.1]} 36. Bxe7+
{[%clk 0:00:07.4]} 36... Rxe7 {[%clk 0:00:28.5]} 37. Rg1 {[%clk 0:00:07.9]}
37... Re4 {[%clk 0:00:27.8]} 38. Rg2 {[%clk 0:00:07.8]} 38... Kf7 {[%clk
0:00:28.1]} 39. Kb4 {[%clk 0:00:08.4]} 39... Kf6 {[%clk 0:00:28.5]} 40. Kxb5
{[%clk 0:00:08.9]} 40... Kxf5 {[%clk 0:00:28.9]} 41. Kc5 {[%clk 0:00:08.4]}
41... Kf4 {[%clk 0:00:29.2]} 42. Kxd5 {[%clk 0:00:08.8]} 42... Kf3 {[%clk
0:00:27.9]} 43. Rg3+ {[%clk 0:00:08.1]} 43... Kxg3 {[%clk 0:00:26]} 44. Kxe4
{[%clk 0:00:08.6]} 44... Kh2 {[%clk 0:00:25]} 45. d5 {[%clk 0:00:09.5]} 45... g3
{[%clk 0:00:25.5]} 46. d6 {[%clk 0:00:10.4]} 46... g2 {[%clk 0:00:26.4]} 47. d7
{[%clk 0:00:11]} 47... g1=Q {[%clk 0:00:27.3]} 48. d8=Q {[%clk 0:00:11.5]} 48...
Qe1+ {[%clk 0:00:26.1]} 49. Kf5 {[%clk 0:00:11.5]} 49... Qf2+ {[%clk 0:00:24.9]}
50. Kg6 {[%clk 0:00:10.8]} 50... Qg3+ {[%clk 0:00:25]} 51. Qg5 {[%clk
0:00:08.7]} 51... Qd3+ {[%clk 0:00:23.3]} 52. Kxg7 {[%clk 0:00:08.2]} 52... Qc2
{[%clk 0:00:23.6]} 53. Qe5+ {[%clk 0:00:06.7]} 53... Kg2 {[%clk 0:00:23.4]} 54.
Qd5+ {[%clk 0:00:06.4]} 54... Kf2 {[%clk 0:00:23]} 55. Qd4+ {[%clk 0:00:06.7]}
55... Ke2 {[%clk 0:00:22.5]} 56. b4 {[%clk 0:00:06.6]} 56... Qxa2 {[%clk
0:00:21.8]} 57. c4 {[%clk 0:00:06.3]} 57... Qa4 {[%clk 0:00:20.1]} 58. c5 {[%clk
0:00:06.5]} 58... Qb5 {[%clk 0:00:20]} 59. Kf6 {[%clk 0:00:05.9]} 59... Kf3
{[%clk 0:00:18.4]} 60. Ke5 {[%clk 0:00:06]} 60... Qb8+ {[%clk 0:00:17.4]} 61.
Kd5 {[%clk 0:00:06.2]} 61... Qd8+ {[%clk 0:00:17]} 62. Kc4 {[%clk 0:00:06.3]}
62... Qb8 {[%clk 0:00:17.1]} 63. Qd5+ {[%clk 0:00:06.6]} 63... Ke3 {[%clk
0:00:17.3]} 64. c6 {[%clk 0:00:07.5]} 64... a6 {[%clk 0:00:17]} 65. Qd7 {[%clk
0:00:04.7]} 65... Qb5+ {[%clk 0:00:16.9]} 66. Kc3 {[%clk 0:00:05.1]} 66... a5
{[%clk 0:00:16.8]} 67. bxa5 {[%clk 0:00:04.9]} 67... Qc5+ {[%clk 0:00:16.9]} 68.
Kb3 {[%clk 0:00:05]} 68... Qb5+ {[%clk 0:00:17.2]} 69. Kc3 {[%clk 0:00:05.5]}
69... Qc5+ {[%clk 0:00:17.4]} 70. Kb3 {[%clk 0:00:06]} 70... Qb5+ {[%clk
0:00:17.8]} 71. Kc3 {[%clk 0:00:06.5]} 1/2-1/2

[Event "*** Titled Tuesday Blitz"]
[Site "Chess.com"]
[Date "2020.04.28"]
[Round "3"]
[White "SCIM"]
[Black "Baby_Legs"]
[Result "1/2-1/2"]
[WhiteElo "2493"]
[BlackElo "2717"]
[TimeControl "180+1"]
[EndTime "10:30:34 PDT"]
[Termination "Game drawn - insufficient material"]

1. d4 {[%clk 0:03:00.9]} 1... Nf6 {[%clk 0:02:59.6]} 2. c4 {[%clk 0:03:00.6]}
2... e6 {[%clk 0:02:59.5]} 3. g3 {[%clk 0:03:00.5]} 3... d5 {[%clk 0:02:57.6]}
4. Nf3 {[%clk 0:03:00.3]} 4... Bb4+ {[%clk 0:02:57.5]} 5. Bd2 {[%clk 0:02:59.9]}
5... Bd6 {[%clk 0:02:58]} 6. Bg2 {[%clk 0:02:51]} 6... O-O {[%clk 0:02:57.5]} 7.
Nc3 {[%clk 0:02:45.7]} 7... c6 {[%clk 0:02:56.6]} 8. Qc2 {[%clk 0:02:41.5]} 8...
Nbd7 {[%clk 0:02:44]} 9. e4 {[%clk 0:02:32.2]} 9... dxe4 {[%clk 0:02:43.3]} 10.
Nxe4 {[%clk 0:02:31.6]} 10... Nxe4 {[%clk 0:02:42.5]} 11. Qxe4 {[%clk
0:02:30.4]} 11... e5 {[%clk 0:02:37]} 12. O-O-O {[%clk 0:01:49.3]} 12... f5
{[%clk 0:01:53.4]} 13. Qc2 {[%clk 0:01:41.5]} 13... e4 {[%clk 0:01:53.5]} 14.
Ng5 {[%clk 0:01:34.7]} 14... Qe7 {[%clk 0:01:41.9]} 15. c5 {[%clk 0:01:31.1]}
15... Bc7 {[%clk 0:01:40.2]} 16. Qb3+ {[%clk 0:01:24.5]} 16... Kh8 {[%clk
0:01:38.1]} 17. Ne6 {[%clk 0:01:24.6]} 17... Ne5 {[%clk 0:01:27.3]} 18. Nxf8
{[%clk 0:01:13.9]} 18... Nd3+ {[%clk 0:01:27.2]} 19. Kb1 {[%clk 0:01:13.4]}
19... Qxf8 {[%clk 0:01:26.6]} 20. Be3 {[%clk 0:01:08.2]} 20... Qe7 {[%clk
0:00:58.3]} 21. Rxd3 {[%clk 0:01:03.2]} 21... exd3 {[%clk 0:00:55.4]} 22. Qxd3
{[%clk 0:01:02.3]} 22... Be6 {[%clk 0:00:54.4]} 23. Ka1 {[%clk 0:00:51.9]} 23...
Rd8 {[%clk 0:00:54.2]} 24. Qc2 {[%clk 0:00:31.8]} 24... Qd7 {[%clk 0:00:47]} 25.
h4 {[%clk 0:00:30.9]} 25... Re8 {[%clk 0:00:45.9]} 26. h5 {[%clk 0:00:28.4]}
26... h6 {[%clk 0:00:45.1]} 27. Qd2 {[%clk 0:00:26.2]} 27... Bg8 {[%clk
0:00:42.4]} 28. Rd1 {[%clk 0:00:15.5]} 28... Rd8 {[%clk 0:00:32.5]} 29. d5
{[%clk 0:00:11.6]} 29... Bxd5 {[%clk 0:00:31.3]} 30. Bxd5 {[%clk 0:00:11.5]}
30... Qxd5 {[%clk 0:00:31.3]} 31. Qxd5 {[%clk 0:00:11.7]} 31... Rxd5 {[%clk
0:00:31.5]} 32. Rxd5 {[%clk 0:00:11.4]} 32... cxd5 {[%clk 0:00:32.4]} 33. Kb1
{[%clk 0:00:10.7]} 33... Kg8 {[%clk 0:00:32.1]} 34. Kc2 {[%clk 0:00:10.4]} 34...
Be5 {[%clk 0:00:32.2]} 35. b4 {[%clk 0:00:09.4]} 35... Kf7 {[%clk 0:00:31.9]}
36. Kd3 {[%clk 0:00:09.1]} 36... Bb2 {[%clk 0:00:23.5]} 37. Bd4 {[%clk
0:00:08.8]} 37... Ba3 {[%clk 0:00:23.6]} 38. Bc3 {[%clk 0:00:08.3]} 38... Bc1
{[%clk 0:00:23.6]} 39. Kd4 {[%clk 0:00:07.6]} 39... Ke6 {[%clk 0:00:22.9]} 40.
b5 {[%clk 0:00:07.2]} 40... Bg5 {[%clk 0:00:22.1]} 41. Kd3 {[%clk 0:00:06.8]}
41... Kf7 {[%clk 0:00:21.4]} 42. a4 {[%clk 0:00:06.9]} 42... Bd8 {[%clk
0:00:21]} 43. f4 {[%clk 0:00:06.6]} 43... g6 {[%clk 0:00:18.1]} 44. hxg6+ {[%clk
0:00:05.3]} 44... Kxg6 {[%clk 0:00:19]} 45. Be5 {[%clk 0:00:05.6]} 45... Kh5
{[%clk 0:00:18.5]} 46. Kd4 {[%clk 0:00:05.5]} 46... Kg4 {[%clk 0:00:18.3]} 47.
c6 {[%clk 0:00:05.6]} 47... bxc6 {[%clk 0:00:17.8]} 48. bxc6 {[%clk 0:00:06.5]}
48... Kxg3 {[%clk 0:00:18.4]} 49. c7 {[%clk 0:00:06.5]} 49... Bxc7 {[%clk
0:00:18.5]} 50. Bxc7 {[%clk 0:00:07.2]} 50... h5 {[%clk 0:00:19.4]} 51. Bd8
{[%clk 0:00:07.5]} 51... h4 {[%clk 0:00:19.5]} 52. Bxh4+ {[%clk 0:00:04.9]}
52... Kxh4 {[%clk 0:00:20.4]} 53. Kxd5 {[%clk 0:00:05]} 53... Kg4 {[%clk
0:00:20.6]} 54. a5 {[%clk 0:00:04.5]} 54... Kxf4 {[%clk 0:00:20.5]} 55. a6
{[%clk 0:00:04.9]} 55... Ke3 {[%clk 0:00:20]} 56. Kc6 {[%clk 0:00:05.8]} 56...
f4 {[%clk 0:00:20.4]} 57. Kb7 {[%clk 0:00:06.7]} 57... f3 {[%clk 0:00:21.1]} 58.
Kxa7 {[%clk 0:00:07.6]} 58... f2 {[%clk 0:00:21.7]} 59. Kb7 {[%clk 0:00:08.1]}
59... f1=Q {[%clk 0:00:22.2]} 60. a7 {[%clk 0:00:09]} 60... Qb5+ {[%clk
0:00:22.1]} 61. Kc8 {[%clk 0:00:07]} 61... Qa6+ {[%clk 0:00:21.7]} 62. Kb8
{[%clk 0:00:07.3]} 62... Qd6+ {[%clk 0:00:20.6]} 63. Kb7 {[%clk 0:00:07.1]}
63... Qd7+ {[%clk 0:00:21]} 64. Kb8 {[%clk 0:00:07.8]} 64... Qd8+ {[%clk
0:00:20.7]} 65. Kb7 {[%clk 0:00:08.2]} 65... Qd7+ {[%clk 0:00:21.1]} 66. Kb8
{[%clk 0:00:08.6]} 66... Qb5+ {[%clk 0:00:21.5]} 67. Kc8 {[%clk 0:00:08.2]}
67... Qb6 {[%clk 0:00:19.2]} 68. a8=Q {[%clk 0:00:07.3]} 68... Qc5+ {[%clk
0:00:19.4]} 69. Kb8 {[%clk 0:00:07.2]} 69... Qf8+ {[%clk 0:00:18.9]} 70. Ka7
{[%clk 0:00:07.3]} 70... Qxa8+ {[%clk 0:00:19.8]} 71. Kxa8 {[%clk 0:00:07]}
1/2-1/2

[Event "*** Titled Tuesday Blitz"]
[Site "Chess.com"]
[Date "2020.04.28"]
[Round "3"]
[White "GMMatamoros"]
[Black "Ceejay271"]
[Result "1/2-1/2"]
[WhiteElo "2526"]
[BlackElo "2311"]
[TimeControl "180+1"]
[EndTime "10:30:34 PDT"]
[Termination "Game drawn - insufficient material"]

1. Nf3 {[%clk 0:03:00.9]} 1... d5 {[%clk 0:02:58.9]} 2. g3 {[%clk 0:03:00.7]}
2... Nf6 {[%clk 0:02:58]} 3. Bg2 {[%clk 0:03:00.1]} 3... c5 {[%clk 0:02:57.8]}
4. O-O {[%clk 0:02:58.7]} 4... e6 {[%clk 0:02:57.7]} 5. c4 {[%clk 0:02:55.1]}
5... dxc4 {[%clk 0:02:53.7]} 6. Na3 {[%clk 0:02:54.4]} 6... Nc6 {[%clk
0:02:51.8]} 7. Nxc4 {[%clk 0:02:54.2]} 7... Be7 {[%clk 0:02:51.7]} 8. b3 {[%clk
0:02:54.6]} 8... O-O {[%clk 0:02:50.8]} 9. Bb2 {[%clk 0:02:55.1]} 9... Nd5
{[%clk 0:02:50.4]} 10. d4 {[%clk 0:02:53.9]} 10... Nxd4 {[%clk 0:02:47.7]} 11.
Nxd4 {[%clk 0:02:54.8]} 11... cxd4 {[%clk 0:02:47.5]} 12. Qxd4 {[%clk
0:02:52.7]} 12... Bf6 {[%clk 0:02:46.7]} 13. Ne5 {[%clk 0:02:53.2]} 13... b6
{[%clk 0:02:41.1]} 14. Rfd1 {[%clk 0:02:34.6]} 14... Ba6 {[%clk 0:02:39.7]} 15.
e4 {[%clk 0:02:24.4]} 15... Ne7 {[%clk 0:02:37.7]} 16. Qa4 {[%clk 0:02:20]}
16... Qc8 {[%clk 0:02:11]} 17. Rac1 {[%clk 0:02:02.6]} 17... b5 {[%clk
0:02:09.6]} 18. Qa3 {[%clk 0:01:29.3]} 18... Qb7 {[%clk 0:01:47]} 19. Nd7 {[%clk
0:01:03.1]} 19... Bxb2 {[%clk 0:01:31.1]} 20. Qxb2 {[%clk 0:01:04]} 20... Rfd8
{[%clk 0:01:24.9]} 21. e5 {[%clk 0:00:59.9]} 21... Nd5 {[%clk 0:01:17.7]} 22.
Nc5 {[%clk 0:00:53.5]} 22... Qb6 {[%clk 0:01:15.9]} 23. b4 {[%clk 0:00:40.1]}
23... Bb7 {[%clk 0:01:12.4]} 24. Nxb7 {[%clk 0:00:32.3]} 24... Qxb7 {[%clk
0:01:11.9]} 25. Rc5 {[%clk 0:00:32.7]} 25... Rac8 {[%clk 0:01:07.3]} 26. Bxd5
{[%clk 0:00:32.4]} 26... Rxd5 {[%clk 0:00:38.1]} 27. Rdxd5 {[%clk 0:00:27.3]}
27... exd5 {[%clk 0:00:38]} 28. Qd4 {[%clk 0:00:26.1]} 28... Rxc5 {[%clk
0:00:32.1]} 29. Qxc5 {[%clk 0:00:27]} 29... g6 {[%clk 0:00:28.5]} 30. h4 {[%clk
0:00:23.9]} 30... h5 {[%clk 0:00:27.4]} 31. Qd6 {[%clk 0:00:22.2]} 31... a6
{[%clk 0:00:24]} 32. a3 {[%clk 0:00:20.4]} 32... Kg7 {[%clk 0:00:21.9]} 33. Qf6+
{[%clk 0:00:19.5]} 33... Kh7 {[%clk 0:00:19.9]} 34. Qd6 {[%clk 0:00:15.9]} 34...
Kg7 {[%clk 0:00:19.5]} 35. Kf1 {[%clk 0:00:15]} 35... Kh7 {[%clk 0:00:17.4]} 36.
Ke2 {[%clk 0:00:14.2]} 36... Kg7 {[%clk 0:00:17.4]} 37. Ke3 {[%clk 0:00:14]}
37... Qc8 {[%clk 0:00:16.3]} 38. Qc5 {[%clk 0:00:13.6]} 38... Qe6 {[%clk
0:00:13.4]} 39. Qd6 {[%clk 0:00:07.9]} 39... Qxd6 {[%clk 0:00:08.9]} 40. exd6
{[%clk 0:00:07.7]} 40... Kf6 {[%clk 0:00:09.6]} 41. Kd4 {[%clk 0:00:08.1]} 41...
Ke6 {[%clk 0:00:10]} 42. d7 {[%clk 0:00:08.5]} 42... Kxd7 {[%clk 0:00:09.7]} 43.
Kxd5 {[%clk 0:00:09.4]} 43... f6 {[%clk 0:00:08.6]} 44. f3 {[%clk 0:00:09.6]}
44... g5 {[%clk 0:00:08.4]} 45. f4 {[%clk 0:00:09.7]} 45... gxh4 {[%clk
0:00:08.3]} 46. gxh4 {[%clk 0:00:10]} 46... Ke7 {[%clk 0:00:06]} 47. Kc5 {[%clk
0:00:08]} 47... Ke6 {[%clk 0:00:06.2]} 48. Kb6 {[%clk 0:00:08.3]} 48... Kf5
{[%clk 0:00:06.9]} 49. Kxa6 {[%clk 0:00:09.2]} 49... Kxf4 {[%clk 0:00:07.5]} 50.
Kxb5 {[%clk 0:00:09.9]} 50... Kg4 {[%clk 0:00:08]} 51. a4 {[%clk 0:00:10.6]}
51... f5 {[%clk 0:00:08.9]} 52. a5 {[%clk 0:00:11.4]} 52... f4 {[%clk
0:00:09.8]} 53. a6 {[%clk 0:00:12.2]} 53... f3 {[%clk 0:00:10.7]} 54. a7 {[%clk
0:00:13]} 54... f2 {[%clk 0:00:11.6]} 55. a8=Q {[%clk 0:00:13.9]} 55... f1=Q+
{[%clk 0:00:11.1]} 56. Kb6 {[%clk 0:00:11.5]} 56... Kxh4 {[%clk 0:00:11]} 57.
Qe4+ {[%clk 0:00:09.9]} 57... Kg3 {[%clk 0:00:10.1]} 58. Qg6+ {[%clk 0:00:09.2]}
58... Kh4 {[%clk 0:00:09]} 59. Qe4+ {[%clk 0:00:08.8]} 59... Kg3 {[%clk
0:00:08.9]} 60. b5 {[%clk 0:00:09.6]} 60... h4 {[%clk 0:00:08.7]} 61. Qe5+
{[%clk 0:00:09.7]} 61... Kg2 {[%clk 0:00:06.2]} 62. Qg5+ {[%clk 0:00:08.5]}
62... Kh3 {[%clk 0:00:06.3]} 63. Kb7 {[%clk 0:00:07.7]} 63... Qg2+ {[%clk
0:00:03.8]} 64. Qxg2+ {[%clk 0:00:06.6]} 64... Kxg2 {[%clk 0:00:04.7]} 65. b6
{[%clk 0:00:07.1]} 65... h3 {[%clk 0:00:05.6]} 66. Kc7 {[%clk 0:00:07.2]} 66...
h2 {[%clk 0:00:06.5]} 67. b7 {[%clk 0:00:07.8]} 67... h1=Q {[%clk 0:00:07]} 68.
b8=Q {[%clk 0:00:08.4]} 68... Qh2+ {[%clk 0:00:07]} 69. Kc8 {[%clk 0:00:08.9]}
69... Qxb8+ {[%clk 0:00:07.5]} 70. Kxb8 {[%clk 0:00:09.8]} 1/2-1/2

[Event "*** Titled Tuesday Blitz"]
[Site "Chess.com"]
[Date "2020.04.28"]
[Round "3"]
[White "m-garcett"]
[Black "AlexZambrano"]
[Result "0-1"]
[WhiteElo "2076"]
[BlackElo "2322"]
[TimeControl "180+1"]
[EndTime "10:30:39 PDT"]
[Termination "AlexZambrano won by resignation"]

1. e4 {[%clk 0:02:56.3]} 1... d5 {[%clk 0:02:59.5]} 2. exd5 {[%clk 0:02:56]}
2... Qxd5 {[%clk 0:02:59.3]} 3. Nc3 {[%clk 0:02:56.3]} 3... Qd6 {[%clk
0:02:58.9]} 4. Bc4 {[%clk 0:02:53.5]} 4... Nf6 {[%clk 0:02:58.2]} 5. d4 {[%clk
0:02:49.6]} 5... c6 {[%clk 0:02:57.9]} 6. Be3 {[%clk 0:02:46.8]} 6... Bg4 {[%clk
0:02:50.5]} 7. Nf3 {[%clk 0:02:44.2]} 7... Nbd7 {[%clk 0:02:49.4]} 8. Qe2 {[%clk
0:02:43]} 8... e6 {[%clk 0:02:47.2]} 9. O-O-O {[%clk 0:02:42.1]} 9... Qc7 {[%clk
0:02:39.5]} 10. h3 {[%clk 0:02:40.6]} 10... Bxf3 {[%clk 0:02:39.1]} 11. Qxf3
{[%clk 0:02:37.9]} 11... Bd6 {[%clk 0:02:33.6]} 12. g4 {[%clk 0:02:30.2]} 12...
Nd5 {[%clk 0:02:29.3]} 13. Bxd5 {[%clk 0:01:58.5]} 13... cxd5 {[%clk 0:02:22.4]}
14. Nb5 {[%clk 0:01:54.5]} 14... Qb6 {[%clk 0:02:21.7]} 15. Nxd6+ {[%clk
0:01:54.6]} 15... Qxd6 {[%clk 0:02:21.3]} 16. Bf4 {[%clk 0:01:53.4]} 16... Qa6
{[%clk 0:02:20.9]} 17. Kb1 {[%clk 0:01:50.6]} 17... Rc8 {[%clk 0:02:12.3]} 18.
Qd3 {[%clk 0:01:45.1]} 18... Qxd3 {[%clk 0:01:36.8]} 19. Rxd3 {[%clk 0:01:46]}
19... O-O {[%clk 0:01:34.9]} 20. Bd6 {[%clk 0:01:33.7]} 20... Rfe8 {[%clk
0:01:33.3]} 21. f4 {[%clk 0:01:33.2]} 21... Nf6 {[%clk 0:01:31.8]} 22. Be5
{[%clk 0:01:29.9]} 22... Ne4 {[%clk 0:01:31.3]} 23. Rb3 {[%clk 0:00:45.1]} 23...
Nd2+ {[%clk 0:01:09]} 24. Kc1 {[%clk 0:00:36.6]} 24... Nxb3+ {[%clk 0:01:08.4]}
25. axb3 {[%clk 0:00:37.5]} 25... Rc6 {[%clk 0:01:08.9]} 26. g5 {[%clk
0:00:35.6]} 26... b5 {[%clk 0:01:00.3]} 27. Kd2 {[%clk 0:00:34.2]} 27... b4
{[%clk 0:00:55.9]} 28. Ra1 {[%clk 0:00:32.6]} 28... Rec8 {[%clk 0:00:45.2]} 29.
c3 {[%clk 0:00:30]} 29... bxc3+ {[%clk 0:00:44]} 30. bxc3 {[%clk 0:00:30.9]}
30... Rxc3 {[%clk 0:00:42.3]} 31. Rxa7 {[%clk 0:00:31.3]} 31... Rxb3 {[%clk
0:00:42.6]} 32. h4 {[%clk 0:00:28.7]} 32... Rh3 {[%clk 0:00:41.4]} 33. f5 {[%clk
0:00:25.3]} 33... exf5 {[%clk 0:00:38.4]} 34. Rd7 {[%clk 0:00:25.2]} 34... Rxh4
{[%clk 0:00:36.1]} 35. Rxd5 {[%clk 0:00:24.8]} 35... Rg4 {[%clk 0:00:32.3]} 36.
Bd6 {[%clk 0:00:17.2]} 36... Rxg5 {[%clk 0:00:30.9]} 37. Be7 {[%clk 0:00:17.2]}
37... Rg2+ {[%clk 0:00:30.3]} 38. Ke3 {[%clk 0:00:16.4]} 38... f6 {[%clk
0:00:30.3]} 39. Bc5 {[%clk 0:00:15.5]} 39... g6 {[%clk 0:00:25]} 40. Rd7 {[%clk
0:00:15]} 40... Re8+ {[%clk 0:00:22.7]} 41. Kf3 {[%clk 0:00:14.5]} 41... Rc2
{[%clk 0:00:19.8]} 42. Rd6 {[%clk 0:00:11]} 42... Rc8 {[%clk 0:00:14.7]} 43. Rd7
{[%clk 0:00:10.2]} 43... R2xc5 {[%clk 0:00:14]} 44. dxc5 {[%clk 0:00:11.1]}
44... Rxc5 {[%clk 0:00:14.3]} 45. Kf4 {[%clk 0:00:11.1]} 45... Rc4+ {[%clk
0:00:14.3]} 46. Kf3 {[%clk 0:00:11.1]} 46... Re4 {[%clk 0:00:14.7]} 47. Kg3
{[%clk 0:00:10.9]} 47... h5 {[%clk 0:00:13.8]} 48. Kf3 {[%clk 0:00:09.7]} 48...
Re5 {[%clk 0:00:13.7]} 49. Kf4 {[%clk 0:00:09.7]} 49... g5+ {[%clk 0:00:14]} 50.
Kf3 {[%clk 0:00:09.2]} 50... f4 {[%clk 0:00:13.4]} 51. Ra7 {[%clk 0:00:08.2]}
51... Re3+ {[%clk 0:00:13.3]} 52. Kg2 {[%clk 0:00:07.9]} 52... Rg3+ {[%clk
0:00:12.9]} 53. Kf2 {[%clk 0:00:08.8]} 53... h4 {[%clk 0:00:12.9]} 54. Ra6
{[%clk 0:00:08.6]} 54... Kg7 {[%clk 0:00:12.6]} 55. Ra7+ {[%clk 0:00:09.5]}
55... Kg6 {[%clk 0:00:12.8]} 56. Ra8 {[%clk 0:00:09.6]} 56... h3 {[%clk
0:00:11.8]} 57. Rh8 {[%clk 0:00:08.6]} 57... g4 {[%clk 0:00:11.6]} 58. Kf1
{[%clk 0:00:07.6]} 58... Rb3 {[%clk 0:00:10.4]} 59. Rg8+ {[%clk 0:00:07.5]}
59... Kf5 {[%clk 0:00:10.8]} 60. Rh8 {[%clk 0:00:07.2]} 60... Ke4 {[%clk
0:00:10.9]} 61. Kf2 {[%clk 0:00:06.9]} 61... Rb2+ {[%clk 0:00:10.6]} 62. Ke1
{[%clk 0:00:06.9]} 62... Kf3 {[%clk 0:00:11.1]} 0-1